[Event "13th All African Mixed Team Rapid-ch 202"]
[Site "Accra"]
[Date "2024.03.09"]
[Round "2.5"]
[White "KIGIGHA, Bomo Lovet"]
[Black "Zhemba, Jemusse"]
[Result "1/2-1/2"]
[ECO "D94"]
[WhiteElo "2231"]
[BlackElo "2226"]
[Annotator "TA"]
[PlyCount "43"]
[EventDate "2024.03.07"]
[EventType "rapid"]
[EventCountry "GHA"]
[SourceTitle "playchess.com"]
[Source "ChessBase"]
[SourceQuality "1"]
[TimeControl "900+10"]

{[%evp 10,43,33,3,29,27,40,36,45,51,43,25,27,0,19,0,95,83,112,105,103,99,103,70,90,56,81,-50,-37,-45,-45,-37,-37,-56,-53,-64]} 1. Nf3 {[%emt 0:00:02]} d5 {[%emt 0:00:01]} 2. e3 {[%emt 0:00:01]} g6 {[%emt 0:00:07]} 3. c4 {[%emt 0:00:01]} c6 {[%emt 0:00:06]} 4. Nc3 {[%emt 0:00:04]} Bg7 {[%emt 0:00:02]} 5. d4 {[%emt 0:00:18]} Nf6 {[%emt 0:00:26][%cal Bg8f6,Bf6d5,Bd5c3][%mdl 32]} 6. cxd5 {[%emt 0:00:33]} Nxd5 {[%emt 0:00:03]} 7. Be2 {[%emt 0:00:22]} Nxc3 {[%emt 0:00:08]} 8. bxc3 {[%emt 0:00:01]} O-O {[%emt 0:00:15][%cal Oc6c5] White is slightly better.} 9. O-O {[%emt 0:00:02]} c5 {[%emt 0:00:02]} 10. Bb2 {[%emt 0:00:33]} Qc7 {[%emt 0:00:04]} 11. c4 {[%emt 0:00:17]} Rd8 {[%emt 0:00:50][%cal Oe7e5]} 12. Qd2 {[%emt 0:01:25]} Nc6 {[%emt 0:01:53]} (12... cxd4 $11 {keeps the balance.} 13. exd4 Bg4) 13. d5 $16 {[%emt 0:00:09] [#] Hoping for Bxg7.} Ne5 {[%emt 0:00:31]} 14. Nxe5 {[%emt 0:00:29]} Bxe5 {[%emt 0:00:02]} 15. Bxe5 {[%emt 0:00:02]} Qxe5 {[%emt 0:00:01]} 16. Rab1 {[%emt 0:00:01]} b6 {[%emt 0:00:06]} 17. a4 {[%emt 0:00:25]} e6 {[%emt 0:01:06][%cal Re6d5]} 18. a5 {[%emt 0:00:09]} (18. f4 $16 Qc7 19. e4) 18... exd5 $15 {[%emt 0:00:13] Black is slightly better.} 19. axb6 {[%emt 0:00:34]} axb6 {[%emt 0:00:01]} 20. Rxb6 {[%emt 0:00:22]} Be6 {[%emt 0:00:01]} 21. Qb2 {[%emt 0:02:29]} Qxb2 {[%emt 0:00:13]} 22. Rxb2 {[%emt 0:00:01] Weighted Error Value: White=0.29 (precise) /Black=0.24 (precise) .  Mistake:       	White=1     	Black=1      Inaccurate:     	White=3     	Black=1      OK:         	White=2     	Black=4      Best:        	White=2     	Black=1} 1/2-1/2

[Event "13th All African Mixed Team Rapid-ch 202"]
[Site "Accra"]
[Date "2024.03.09"]
[Round "2.6"]
[White "Shaba, Linda Dalitso"]
[Black "PEACE SAMSON"]
[Result "1-0"]
[ECO "D11"]
[WhiteElo "1836"]
[BlackElo "1870"]
[Annotator "NA RC"]
[PlyCount "166"]
[EventDate "2024.03.07"]
[EventType "rapid"]
[EventCountry "GHA"]
[SourceTitle "playchess.com"]
[Source "ChessBase"]
[SourceQuality "1"]
[TimeControl "900+10"]

1. d4 {[%emt 0:00:04]} d5 {[%emt 0:00:09]} 2. Nf3 {[%emt 0:00:04]} Nf6 {[%emt 0:00:06]} 3. c4 {[%emt 0:00:03]} c6 {[%emt 0:00:05]} 4. Qc2 {[%emt 0:00:36]} g6 {[%emt 0:00:45]} 5. g3 {[%emt 0:00:03]} Bf5 {[%emt 0:00:13]} 6. Qb3 {[%emt 0:00:05] D11: Slav Defence: 3 Nf3 sidelines and 3...Nf6 4 e3 Bg4.} Qc8 {[%emt 0:01:17]} 7. Bg2 {[%emt 0:00:59]} Bg7 {[%emt 0:00:07]} 8. Nc3 {[%emt 0:02:17]} dxc4 {[%emt 0:00:27]} 9. Qxc4 {[%emt 0:00:13]} O-O {[%emt 0:00:15]} 10. O-O {[%emt 0:00:20]} Bh3 {[%emt 0:00:06]} 11. Bf4 {[%emt 0:02:13]} Na6 {[%emt 0:00:46]} 12. Qb3 {[%emt 0:00:46]} Bxg2 {[%emt 0:00:14]} 13. Kxg2 {[%emt 0:00:02]} Nc7 {[%emt 0:00:43]} 14. e4 {[%emt 0:00:21]} Nh5 {[%emt 0:00:45]} 15. Be3 {[%emt 0:00:15]} Nf6 {[%emt 0:00:23]} 16. Rac1 {[%emt 0:00:16]} Na6 {[%emt 0:03:16]} 17. h3 {[%emt 0:01:13]} b6 {[%emt 0:01:50]} 18. Rfe1 {[%emt 0:01:34]} Qb7 {[%emt 0:00:18]} 19. Bf4 {[%emt 0:00:18]} Nh5 {[%emt 0:00:06]} 20. Be3 {[%emt 0:00:03]} Nf6 {[%emt 0:00:06]} 21. g4 {[%emt 0:00:37]} e6 {[%emt 0:00:16]} 22. Bf4 {[%emt 0:00:07]} Rac8 {[%emt 0:00:39]} 23. Be5 {[%emt 0:00:27]} h6 {[%emt 0:01:00]} 24. a3 {[%emt 0:00:57]} c5 {[%emt 0:00:25]} 25. Rcd1 {[%emt 0:01:48]} cxd4 {[%emt 0:01:20]} 26. Bxd4 {[%emt 0:00:44]} Rfd8 {[%emt 0:01:01]} 27. Bxf6 {[%emt 0:00:49]} Bxf6 {[%emt 0:00:04]} 28. e5 {[%emt 0:00:02]} Nc5 {[%emt 0:00:47]} 29. Qc2 {[%emt 0:00:30]} Rxd1 {[%emt 0:00:25]} 30. Qxd1 {[%emt 0:00:11]} Rd8 {[%emt 0:00:13]} 31. Qe2 {[%emt 0:00:23]} Bg7 {[%emt 0:00:33]} 32. b4 {[%emt 0:00:11]} Nd3 {[%emt 0:00:05]} 33. Qd2 {[%emt 0:00:51]} Nxe1+ {[%emt 0:00:07]} 34. Qxe1 {[%emt 0:00:02]} Rd3 {[%emt 0:00:20]} 35. Ne4 {[%emt 0:00:13]} Qd5 {[%emt 0:01:00]} 36. Qe2 {[%emt 0:00:23]} Rxa3 {[%emt 0:00:09]} 37. Ng3 {[%emt 0:00:56]} Bxe5 {[%emt 0:00:17]} 38. Qxe5 {[%emt 0:00:14]} Qxf3+ {[%emt 0:00:09]} 39. Kg1 {[%emt 0:00:06]} Qd5 {[%emt 0:00:30]} 40. Qb8+ {[%emt 0:00:15]} Kg7 {[%emt 0:00:02]} 41. Qc7 {[%emt 0:00:10]} Ra1+ {[%emt 0:00:07]} 42. Kh2 {[%emt 0:00:00]} h5 {[%emt 0:00:27]} 43. Qc3+ {[%emt 0:00:04]} f6 {[%emt 0:00:06]} 44. Qxa1 {[%emt 0:00:01]} h4 {[%emt 0:00:02]} 45. Nf1 {[%emt 0:00:34]} Qd6+ {[%emt 0:00:04]} 46. Kg1 {[%emt 0:00:02]} Qxb4 {[%emt 0:00:04]} 47. Qxa7+ {[%emt 0:00:03]} Kh6 {[%emt 0:00:01]} 48. Qf7 {[%emt 0:00:10]} Qb3 {[%emt 0:00:35]} 49. Qxf6 {[%emt 0:00:23]} b5 {[%emt 0:00:14]} 50. Qf4+ {[%emt 0:00:13]} g5 {[%emt 0:00:08]} 51. Qf6+ {[%emt 0:00:04]} Kh7 {[%emt 0:00:02]} 52. Qxg5 {[%emt 0:00:05]} Qxh3 {[%emt 0:00:19]} 53. Qe7+ {[%emt 0:00:02]} Kh8 {[%emt 0:00:02]} 54. Qxe6 {[%emt 0:00:03]} Qd3 {[%emt 0:00:06]} 55. Qf6+ {[%emt 0:00:14]} Kg8 {[%emt 0:00:05]} 56. Qxh4 {[%emt 0:00:03]} b4 {[%emt 0:00:01]} 57. Qg5+ {[%emt 0:00:02]} Kh8 {[%emt 0:00:17]} 58. Qf6+ {[%emt 0:00:07]} Kg8 {[%emt 0:00:04]} 59. Qe6+ {[%emt 0:00:13]} Kh8 {[%emt 0:00:04]} 60. Qc8+ {[%emt 0:00:06]} Kh7 {[%emt 0:00:13]} 61. Qb7+ {[%emt 0:00:02]} Kg6 {[%emt 0:00:02]} 62. Qxb4 {[%emt 0:00:02]} Qd1 {[%emt 0:00:05]} 63. Qe4+ {[%emt 0:00:06]} Kg5 {[%emt 0:00:15]} 64. Kg2 {[%emt 0:00:20]} Qb3 {[%emt 0:00:39]} 65. Qe3+ {[%emt 0:00:02]} Qxe3 {[%emt 0:00:01]} 66. Nxe3 {[%emt 0:00:01]} Kf4 {[%emt 0:00:01]} 67. Kf1 {[%emt 0:00:05]} Kg5 {[%emt 0:00:04]} 68. Ke2 {[%emt 0:00:01]} Kf4 {[%emt 0:00:01]} 69. f3 {[%emt 0:00:01]} Kg5 {[%emt 0:00:05]} 70. Nd5 {[%emt 0:00:01]} Kh4 {[%emt 0:00:03]} 71. Ke3 {[%emt 0:00:02]} Kg5 {[%emt 0:00:01]} 72. Ke4 {[%emt 0:00:02]} Kg6 {[%emt 0:00:02]} 73. f4 {[%emt 0:00:01]} Kf7 {[%emt 0:00:01]} 74. f5 {[%emt 0:00:01]} Kg7 {[%emt 0:00:00]} 75. g5 {[%emt 0:00:01]} Kh7 {[%emt 0:00:01]} 76. Ke5 {[%emt 0:00:03]} Kh8 {[%emt 0:00:02]} 77. Ke6 {[%emt 0:00:02]} Kh7 {[%emt 0:00:00]} 78. Ke7 {[%emt 0:00:10]} Kh8 {[%emt 0:00:05]} 79. f6 {[%emt 0:00:04]} Kh7 {[%emt 0:00:01]} 80. Nf4 {[%emt 0:00:05]} Kg8 {[%emt 0:00:09]} 81. g6 {[%emt 0:00:14]} Kh8 {[%emt 0:00:02]} 82. Ne6 {[%emt 0:00:06]} Kg8 {[%emt 0:00:02]} 83. f7+ {[%emt 0:00:03]} Kh8 {[%emt 0:00:01]} 1-0

[Event "13th All African Mixed Team Rapid-ch 202"]
[Site "Accra"]
[Date "2024.03.09"]
[Round "2.7"]
[White "Cogan, Nicolas"]
[Black "Amin, Bassem"]
[Result "0-1"]
[ECO "A97"]
[WhiteElo "2070"]
[BlackElo "2670"]
[Annotator "TA"]
[PlyCount "62"]
[EventDate "2024.03.07"]
[EventType "rapid"]
[EventCountry "GHA"]
[SourceTitle "playchess.com"]
[Source "ChessBase"]
[SourceQuality "1"]
[TimeControl "900+10"]

{[%evp 17,62,57,50,31,28,2,63,-33,-23,-33,-29,-37,-27,-67,-72,-233,-236,-239,-192,-269,-270,-338,-330,-315,-283,-330,-308,-308,-231,-302,-219,-345,-325,-345,-345,-331,-162,-283,-308,-356,-272,-310,-303,-346,-341,-378,-341]} 1. d4 {[%emt 0:00:03]} e6 {[%emt 0:00:11]} 2. c4 {[%emt 0:00:52]} f5 {[%emt 0:00:03]} 3. g3 {[%emt 0:00:59]} Nf6 {[%emt 0:00:03]} 4. Bg2 {[%emt 0:00:03]} Be7 {[%emt 0:00:11]} 5. Nc3 {[%emt 0:00:07]} O-O {[%emt 0:00:03]} 6. Nf3 {[%emt 0:00:22]} d6 {[%emt 0:00:02]} 7. O-O {[%emt 0:00:11]} Qe8 {[%emt 0:00:01]} 8. Re1 {[%emt 0:01:20]} Qg6 {[%emt 0:00:02]} 9. Qc2 {[%emt 0:01:16]} Ne4 {[%emt 0:00:11]} 10. Nd2 {[%emt 0:01:37]} Nxc3 {[%emt 0:00:03]} 11. Qxc3 {[%emt 0:00:25]} Bf6 {[%emt 0:00:45]} (11... Nc6 $11) 12. Nf1 {[%emt 0:03:49]} (12. c5 $14) 12... Nc6 {[%emt 0:00:37][%cal Bb8c6,Bc6b4,Bb4d3][%mdl 32]} 13. e3 {[%emt 0:00:13]} e5 {[%emt 0:00:02]} 14. dxe5 {[%emt 0:00:22]} dxe5 {[%emt 0:00:08]} 15. Qc2 {[%emt 0:00:32]} e4 {[%emt 0:00:09] ...Nb4 is the strong threat.} 16. Nd2 $2 {[%emt 0:01:23] [#] This move loses the game for White.} (16. Bd2 $17) 16... Nb4 $19 {[%emt 0:00:27]} 17. Qb3 {[%emt 0:00:51]} a5 {[%emt 0:00:25]} 18. a3 {[%emt 0:01:30]} (18. Bf1 {was worth a try.}) 18... Nd3 {[%emt 0:00:03]} 19. Re2 {[%emt 0:00:04] White is weak on the dark squares} a4 {[%emt 0:00:18]} 20. Qc2 {[%emt 0:00:13]} Bd7 {[%emt 0:00:43]} 21. f4 {[%emt 0:01:19]} Ra6 {[%emt 0:00:34]} 22. Rb1 {[%emt 0:00:17]} Rb6 {[%emt 0:00:35]} 23. Bf1 {[%emt 0:00:29]} h5 {[%emt 0:00:14] aiming for ...h4.} 24. Rg2 {[%emt 0:00:11]} (24. c5 {keeps fighting.} Re6 25. Qc4) 24... Ne1 {[%emt 0:00:04][%csl LRc2,LRg2]} 25. Qd1 {[%emt 0:00:13]} Nxg2 {[%emt 0:00:03]} 26. Kxg2 {[%emt 0:00:11]} Be7 {[%emt 0:00:32]} (26... Rd8 $142 {And now ...h4 would win.} 27. c5 Rc6) 27. b4 {[%emt 0:00:30]} (27. c5 $142 Re6 (27... Bxc5 $2 28. Nc4 $19) 28. Bc4) 27... axb3 {[%emt 0:00:18]} 28. Nxb3 {[%emt 0:00:07]} Be6 {[%emt 0:02:23]} 29. Qc2 {[%emt 0:00:08]} c5 {[%emt 0:00:12]} 30. Bb2 {[%emt 0:00:12]} h4 {[%emt 0:00:08] White must now prevent ...hxg3.} 31. Be5 {[%emt 0:00:13]} Ra6 {[%emt 0:00:26] Weighted Error Value: White=0.50/Black=0.37.  Loses game:     	White=1     	---        Mistake:       	White=4     	Black=2      Inaccurate:     	White=3     	---        OK:         	White=3     	Black=10     Best:        	---       	Black=1} 0-1

[Event "13th All African Mixed Team Rapid-ch 202"]
[Site "Accra"]
[Date "2024.03.09"]
[Round "2.8"]
[White "Wafa, Shahenda"]
[Black "Yavo Tchetche, Marie"]
[Result "1-0"]
[ECO "C13"]
[WhiteElo "2083"]
[BlackElo "1659"]
[Annotator "RC"]
[PlyCount "95"]
[EventDate "2024.03.07"]
[EventType "rapid"]
[EventCountry "GHA"]
[SourceTitle "playchess.com"]
[Source "ChessBase"]
[SourceQuality "1"]
[TimeControl "900+10"]

1. e4 {[%emt 0:00:02]} e6 {[%emt 0:00:06]} 2. d4 {[%emt 0:00:03]} d5 {[%emt 0:00:26]} 3. Nc3 {[%emt 0:00:03]} dxe4 {[%emt 0:01:10]} 4. Nxe4 {[%emt 0:00:03]} Nf6 {[%emt 0:00:02]} 5. Bg5 {[%emt 0:00:10]} Be7 {[%emt 0:00:07]} 6. Bxf6 {[%emt 0:00:03]} Bxf6 {[%emt 0:00:01]} 7. Nf3 {[%emt 0:00:05]} Nd7 {[%emt 0:00:39]} 8. Bd3 {[%emt 0:00:10]} a6 {[%emt 0:01:04]} 9. Qe2 {[%emt 0:00:22]} b5 {[%emt 0:00:06]} 10. a4 {[%emt 0:02:57]} b4 {[%emt 0:01:10]} 11. O-O {[%emt 0:00:26]} O-O {[%emt 0:00:17]} 12. c3 {[%emt 0:00:32]} bxc3 {[%emt 0:00:16]} 13. bxc3 {[%emt 0:00:02]} Bb7 {[%emt 0:00:22]} 14. Rab1 {[%emt 0:00:09]} Bc6 {[%emt 0:00:12]} 15. a5 {[%emt 0:00:48]} e5 {[%emt 0:02:53]} 16. Nxf6+ {[%emt 0:01:40]} Qxf6 {[%emt 0:00:27]} 17. Nxe5 {[%emt 0:01:41]} Nxe5 {[%emt 0:01:10]} 18. Qxe5 {[%emt 0:01:49]} Qxe5 {[%emt 0:00:15]} 19. dxe5 {[%emt 0:00:02]} Rfd8 {[%emt 0:00:13]} 20. Bc4 {[%emt 0:00:33]} Bd5 {[%emt 0:00:21]} 21. Rb4 {[%emt 0:01:19]} Bxc4 {[%emt 0:02:40]} 22. Rxc4 {[%emt 0:05:51]} Rd5 {[%emt 0:00:02]} 23. f4 {[%emt 0:00:00]} Rxa5 {[%emt 0:00:22]} 24. Rxc7 {[%emt 0:00:00]} h6 {[%emt 0:00:41]} 25. Kf2 {[%emt 0:00:00]} Ra2+ {[%emt 0:01:14]} 26. Kf3 {[%emt 0:00:00]} a5 {[%emt 0:00:08]} 27. Rb1 {[%emt 0:00:00]} a4 {[%emt 0:00:56]} 28. Rbb7 {[%emt 0:00:00]} Rf8 {[%emt 0:00:29]} 29. e6 {[%emt 0:00:00]} a3 {[%emt 0:00:27]} 30. exf7+ {[%emt 0:00:00]} Kh7 {[%emt 0:00:16]} 31. Ra7 {[%emt 0:00:00]} Ra1 {[%emt 0:00:17]} 32. Kf2 {[%emt 0:00:00]} Kg6 {[%emt 0:00:53]} 33. Rc6+ {[%emt 0:00:00]} Kf5 {[%emt 0:00:22]} 34. Rc4 {[%emt 0:00:00]} a2 {[%emt 0:00:19]} 35. Rca4 {[%emt 0:00:00]} Rc1 {[%emt 0:00:16]} 36. Rxa2 {[%emt 0:00:03]} Rxc3 {[%emt 0:00:03]} 37. g3 {[%emt 0:00:14]} Rc6 {[%emt 0:00:13]} 38. Rb2 {[%emt 0:00:00]} Rf6 {[%emt 0:00:08]} 39. Rb5+ {[%emt 0:00:00]} Kg6 {[%emt 0:00:04]} 40. Rbb7 {[%emt 0:00:17]} R6xf7 {[%emt 0:00:06]} 41. Rxf7 {[%emt 0:00:03]} Rxf7 {[%emt 0:00:01]} 42. Rxf7 {[%emt 0:00:02]} Kxf7 {[%emt 0:00:03]} 43. Ke3 {[%emt 0:00:28]} Kf6 {[%emt 0:00:09]} 44. g4 {[%emt 0:00:36]} g6 {[%emt 0:00:11]} 45. Ke4 {[%emt 0:00:08]} Ke6 {[%emt 0:00:45]} 46. f5+ {[%emt 0:00:16]} Kf6 {[%emt 0:00:07]} 47. Kf4 {[%emt 0:00:26]} h5 {[%emt 0:00:31]} 48. g5+ {[%emt 0:00:10]} 1-0

[Event "13th All African Mixed Team Rapid-ch 202"]
[Site "Accra"]
[Date "2024.03.09"]
[Round "2.9"]
[White "Rakotomaharo, Fy Antenaina"]
[Black "Mwali, Chitumbo"]
[Result "1-0"]
[ECO "A46"]
[WhiteElo "2454"]
[BlackElo "2340"]
[Annotator "TA"]
[PlyCount "81"]
[EventDate "2024.03.07"]
[EventType "rapid"]
[EventCountry "GHA"]
[SourceTitle "playchess.com"]
[Source "ChessBase"]
[SourceQuality "1"]
[TimeControl "900+10"]

{[%evp 9,81,27,45,29,54,56,55,53,51,39,41,23,33,14,23,-10,21,19,33,0,0,-20,-4,-18,-14,-20,0,0,0,0,0,0,0,-145,34,23,41,22,70,74,66,66,310,301,474,465,564,567,558,582,1009,1007,3615,2761,1775,712,731,731,709,502,5102,4910,1197,1166,6040,6040,6040,6040,29986,29987,29987,29988,29988,29989]} 1. d4 {[%emt 0:00:03]} Nf6 {[%emt 0:00:00]} 2. Nf3 {[%emt 0:00:03]} c5 {[%emt 0:00:16]} 3. e3 {[%emt 0:00:11]} e6 {[%emt 0:00:14]} 4. Bd3 {[%emt 0:00:09]} cxd4 {[%emt 0:00:04]} 5. exd4 {[%emt 0:00:02]} d6 {[%emt 0:00:01]} 6. c4 {[%emt 0:00:13]} Be7 {[%emt 0:00:01]} 7. Nc3 {[%emt 0:00:02]} O-O {[%emt 0:00:01]} 8. O-O {[%emt 0:00:03] Weiß steht etwas besser.} a6 {[%emt 0:00:00]} 9. Bf4 {[%emt 0:00:34]} b6 {[%emt 0:00:14]} 10. h3 {[%emt 0:00:03]} Bb7 {[%emt 0:00:01]} 11. Re1 {[%emt 0:00:11][%cal Od4d5]} Nbd7 {[%emt 0:00:10]} 12. Bh2 {[%emt 0:00:04]} Re8 {[%emt 0:00:09]} 13. Rc1 {[%emt 0:00:04]} Bf8 {[%emt 0:00:01]} 14. Bb1 {[%emt 0:00:23]} Rc8 {[%emt 0:00:10]} 15. b3 {[%emt 0:00:01]} g6 {[%emt 0:00:56]} 16. Qd3 {[%emt 0:00:32]} d5 {[%emt 0:03:00]} 17. cxd5 {[%emt 0:00:31]} Ba3 {[%emt 0:03:15]} (17... Nxd5 {vereinfacht} 18. Nxd5 Rxc1 19. Rxc1 Bxd5 20. Qe3 Ba3) 18. dxe6 {[%emt 0:01:10]} Bxc1 {[%emt 0:00:09]} 19. exf7+ {[%emt 0:00:03]} (19. Rxc1 Rxe6 20. Bf4 Nd5 21. Nxd5 Rxc1+ (21... Bxd5 22. Rf1 $17) 22. Bxc1 Bxd5 $17) 19... Kxf7 {[%emt 0:00:01]} 20. Rxc1 {[%emt 0:00:06]} Kg7 {[%emt 0:00:37]} 21. Ne5 {[%emt 0:00:59] [#]} (21. Rf1 $11 {hält das Gleichgewicht.}) 21... Be4 $2 {[%emt 0:00:59]} 22. Qe3 $14 {[%emt 0:01:07] Das Brett brennt.} (22. Nxe4 $2 Rxc1+ $19) 22... Bxb1 {[%emt 0:01:22]} 23. Rxb1 {[%emt 0:00:02]} Qc7 {[%emt 0:00:29]} (23... b5 $11 {war vorzuziehen.}) 24. Nxd7 {[%emt 0:00:46]} Qxd7 {[%emt 0:03:23]} (24... Qxc3 $2 25. Be5 Qxe3 26. Bxf6+ (26. fxe3 Rxe5 27. Nxe5 Rc2 $16) 26... Kg8 27. fxe3 $18) (24... Rxe3 $2 25. Bxc7 Rxc7 (25... Rxc3 $2 26. Be5 $18) 26. fxe3 $18) 25. Be5 $36 {[%emt 0:00:03][%mdl 2048] Ne4 ist eine echte Drohung. Weiss hat Druck.} Qf5 {[%emt 0:00:18] [#] Das kostet Schwarz die Partie.} (25... Kg8 $14) 26. g4 $1 $18 {[%emt 0:00:44]} Rxe5 {[%emt 0:02:39]} (26... Rxc3 $142 27. gxf5 Rxe3 28. fxe3 gxf5) 27. dxe5 {[%emt 0:00:21][%cal Bd4e5,Be5e6][%mdl 32]} (27. gxf5 $2 Rxe3 28. fxe3 Rxc3 29. fxg6 Kxg6 $19 (29... Rxe3 $2 30. gxh7 Rxh3 31. Re1 $19) (29... hxg6 $2 30. Kf2 $19)) 27... Nxg4 {[%emt 0:01:10]} 28. hxg4 {[%emt 0:00:07]} Qxg4+ {[%emt 0:00:00]} 29. Kf1 {[%emt 0:00:02]} Rf8 {[%emt 0:00:00]} 30. e6 {[%emt 0:00:57][%cal Ob1d1]} ({Minderwertig wäre} 30. Qxb6 Qh3+ 31. Ke2 Qxc3 32. Qb7+ Rf7 $11) 30... Rf3 {[%emt 0:00:00]} 31. Qe5+ {[%emt 0:00:02]} Kh6 {[%emt 0:00:00]} 32. Nd5 {[%emt 0:01:41]} Qh4 {[%emt 0:00:14]} 33. Rb2 {[%emt 0:00:02][%cal Oe6e7] e7! wäre nun fies.} (33. Nxb6 $2 Qxf2#) 33... Rf5 {[%emt 0:00:19]} 34. Qe3+ {[%emt 0:00:04]} g5 {[%emt 0:00:01]} (34... Kg7 $142 35. Nc3 (35. Nxb6 Qh5 $18) 35... Qh1+ 36. Ke2 Qh5+ 37. Kd2 Re5) 35. Rd2 {[%emt 0:03:03][%cal Oe6e7] Beabsichtigt e7! und Matt.} Qh1+ {[%emt 0:00:21]} 36. Ke2 {[%emt 0:00:02] Droht Matt per e7.} Qh5+ {[%emt 0:00:01]} 37. f3 {[%emt 0:00:14][%cal Oe6e7] Weiss will mit e7! Matt setzen.} Qh2+ {[%emt 0:00:30]} 38. Kd1 {[%emt 0:00:03]} Qh1+ {[%emt 0:00:06]} 39. Kc2 {[%emt 0:00:14] Weiß setzt Matt.} Rxf3 {[%emt 0:00:02]} 40. Qe5 {[%emt 0:00:02]} Rf8 {[%emt 0:00:23]} 41. Rh2+ {[%emt 0:00:02] Gewichteter Fehlerwert: Weiß=0.20 (präzise) /Schwarz=0.51.  Verlustzug:     	---       	Schwarz=1     Fehler:       	Weiß=1     	Schwarz=3     Ungenau:       	Weiß=2     	Schwarz=3     OK:         	Weiß=8     	Schwarz=8     Bester:       	Weiß=4     	---        Stark:        	Weiß=1     	---} 1-0

[Event "13th All African Mixed Team Rapid-ch 202"]
[Site "Accra"]
[Date "2024.03.09"]
[Round "2.10"]
[White "Mbatha, Constance"]
[Black "Tsinjoviniavo, Aina Mahasambatra"]
[Result "1-0"]
[ECO "C77"]
[WhiteElo "1799"]
[BlackElo "1681"]
[Annotator "NA RC"]
[PlyCount "85"]
[EventDate "2024.03.07"]
[EventType "rapid"]
[EventCountry "GHA"]
[SourceTitle "playchess.com"]
[Source "ChessBase"]
[SourceQuality "1"]
[TimeControl "900+10"]

1. e4 {[%emt 0:00:01]} e5 {[%emt 0:00:01]} 2. Nf3 {[%emt 0:00:02]} Nc6 {[%emt 0:00:02]} 3. Bb5 {[%emt 0:00:01]} a6 {[%emt 0:00:01]} 4. Ba4 {[%emt 0:00:01]} Nf6 {[%emt 0:00:03]} 5. d3 {[%emt 0:00:12]} b5 {[%emt 0:00:28]} 6. Bb3 {[%emt 0:00:01]} d5 {[%emt 0:00:24]} 7. exd5 {[%emt 0:00:10]} Nxd5 {[%emt 0:00:03]} 8. O-O {[%emt 0:00:02]} Bc5 {[%emt 0:00:13]} 9. Re1 {[%emt 0:00:24]} Qd6 {[%emt 0:00:24]} 10. d4 {[%emt 0:01:43]} Bb6 {[%emt 0:02:56]} 11. dxe5 {[%emt 0:00:40]} Qc5 {[%emt 0:00:04]} 12. Qxd5 {[%emt 0:02:12]} Qxf2+ {[%emt 0:00:21]} 13. Kh1 {[%emt 0:00:02]} Bd7 {[%emt 0:01:01]} 14. Qxf7+ {[%emt 0:02:17]} Kd8 {[%emt 0:00:02]} 15. e6 {[%emt 0:00:02]} Be8 {[%emt 0:00:03]} 16. Bg5+ {[%emt 0:00:52]} Kc8 {[%emt 0:00:09]} 17. Qf4 {[%emt 0:00:39]} Ba5 {[%emt 0:01:08]} 18. c3 {[%emt 0:00:40]} Bb6 {[%emt 0:00:08]} 19. Bh4 {[%emt 0:00:14]} Qxb2 {[%emt 0:00:19]} 20. Nbd2 {[%emt 0:00:17]} Qxc3 {[%emt 0:00:07]} 21. Rac1 {[%emt 0:00:17]} Qb4 {[%emt 0:00:04]} 22. Qxb4 {[%emt 0:00:47]} Nxb4 {[%emt 0:00:02]} 23. Rf1 {[%emt 0:00:14]} a5 {[%emt 0:00:31]} 24. Ne5 {[%emt 0:00:49]} a4 {[%emt 0:01:09]} 25. Bd1 {[%emt 0:00:15]} Be3 {[%emt 0:00:15]} 26. Nef3 {[%emt 0:00:29]} Nxa2 {[%emt 0:00:28]} 27. Rc2 {[%emt 0:00:12]} Nb4 {[%emt 0:00:06]} 28. Rb2 {[%emt 0:00:03]} c5 {[%emt 0:00:05]} 29. Ne4 {[%emt 0:00:10]} a3 {[%emt 0:00:14]} 30. Rb1 {[%emt 0:00:25]} a2 {[%emt 0:00:13]} 31. Ra1 {[%emt 0:00:02]} Kc7 {[%emt 0:00:18]} 32. Bg3+ {[%emt 0:00:04]} Kb6 {[%emt 0:00:09]} 33. Nc3 {[%emt 0:00:25]} Bh5 {[%emt 0:00:15]} 34. Ne5 {[%emt 0:00:34]} Bxd1 {[%emt 0:00:28]} 35. Rfxd1 {[%emt 0:00:16]} Nc2 {[%emt 0:01:02]} 36. Nd7+ {[%emt 0:00:16]} Ka5 {[%emt 0:00:23]} 37. Rxa2+ {[%emt 0:00:13]} Kb4 {[%emt 0:00:12]} 38. Rxa8 {[%emt 0:00:07]} Rg8 {[%emt 0:07:39]} 39. Rd8 Rxd8 {[%emt 0:00:00]} 40. Nd5+ {[%emt 0:00:09]} Kb3 {[%emt 0:00:00]} 41. Nxe3 {[%emt 0:00:06]} Nxe3 {[%emt 0:00:00]} 42. Rb1+ {[%emt 0:00:02]} Ka4 {[%emt 0:00:00]} 43. e7 {[%emt 0:00:17]} 1-0